[Event "Early-Titled-Tuesday-Blitz-April-16-2024"]
[Site "Chess.com"]
[Date "2024.04.16"]
[Round "10"]
[White "PawnEatingZombie"]
[Black "Misterfox120"]
[Result "0-1"]
[WhiteElo "2247"]
[BlackElo "2394"]
[TimeControl "180+1"]
[EndTime "10:00:49 PDT"]
[Termination "Misterfox120 won by resignation"]

1. e4 {[%clk 0:03:00.9]} 1... Nf6 {[%clk 0:02:57]} 2. e5 {[%clk 0:03:00.2]} 2...
Nd5 {[%clk 0:02:55.2]} 3. d4 {[%clk 0:03:00.8]} 3... d6 {[%clk 0:02:55.1]} 4.
Nf3 {[%clk 0:03:01.5]} 4... g6 {[%clk 0:02:51.1]} 5. c4 {[%clk 0:02:59.1]} 5...
Nb6 {[%clk 0:02:50.7]} 6. Nc3 {[%clk 0:02:59.4]} 6... Bg7 {[%clk 0:02:50.2]} 7.
h3 {[%clk 0:02:44.3]} 7... Nc6 {[%clk 0:02:36.1]} 8. exd6 {[%clk 0:02:41.9]}
8... cxd6 {[%clk 0:02:35]} 9. Be3 {[%clk 0:02:42.3]} 9... O-O {[%clk 0:02:30.7]}
10. Rc1 {[%clk 0:02:42.2]} 10... d5 {[%clk 0:02:15.3]} 11. c5 {[%clk 0:02:41.1]}
11... Nc4 {[%clk 0:02:15.6]} 12. Bxc4 {[%clk 0:02:38.4]} 12... dxc4 {[%clk
0:02:16.5]} 13. Qa4 {[%clk 0:02:10.8]} 13... Nxd4 {[%clk 0:02:04.3]} 14. Nxd4
{[%clk 0:02:06.5]} 14... Bxd4 {[%clk 0:02:05.2]} 15. Qxc4 {[%clk 0:02:03.8]}
15... Bxe3 {[%clk 0:02:03.7]} 16. fxe3 {[%clk 0:02:04.7]} 16... Be6 {[%clk
0:01:56.2]} 17. Qd4 {[%clk 0:01:58.8]} 17... Qc7 {[%clk 0:01:51.3]} 18. O-O
{[%clk 0:01:56.6]} 18... Rad8 {[%clk 0:01:50.1]} 19. Qh4 {[%clk 0:01:51.2]}
19... Qxc5 {[%clk 0:01:41.6]} 20. Qh6 {[%clk 0:01:49.4]} 20... Rd3 {[%clk
0:01:32.8]} 21. Ne4 {[%clk 0:01:49]} 21... Qxe3+ {[%clk 0:01:31.9]} 22. Qxe3
{[%clk 0:01:49.6]} 22... Rxe3 {[%clk 0:01:32.8]} 23. Nc5 {[%clk 0:01:49.3]}
23... b6 {[%clk 0:01:31.9]} 24. Nxe6 {[%clk 0:01:48.7]} 24... Rxe6 {[%clk
0:01:32.8]} 25. Rc7 {[%clk 0:01:48.5]} 25... a5 {[%clk 0:01:32.1]} 26. Rd1
{[%clk 0:01:44.9]} 26... f6 {[%clk 0:01:28.2]} 27. Rdd7 {[%clk 0:01:40.3]} 27...
Kf7 {[%clk 0:01:28]} 28. Kf2 {[%clk 0:01:37.8]} 28... Re8 {[%clk 0:01:19.4]} 29.
b3 {[%clk 0:01:26.3]} 29... h5 {[%clk 0:01:05.3]} 30. h4 {[%clk 0:01:25.9]}
30... Kf8 {[%clk 0:01:03.9]} 31. g3 {[%clk 0:01:25.9]} 31... Rd6 {[%clk
0:01:03]} 32. Rxd6 {[%clk 0:01:25]} 32... exd6 {[%clk 0:01:03.9]} 33. Rc6 {[%clk
0:01:25.2]} 33... Rb8 {[%clk 0:01:01.2]} 34. Rxd6 {[%clk 0:01:25]} 34... Ke7
{[%clk 0:01:01.7]} 35. Rc6 {[%clk 0:01:23.3]} 35... Rd8 {[%clk 0:00:34.4]} 36.
Rxb6 {[%clk 0:01:23]} 36... Rd2+ {[%clk 0:00:34.1]} 37. Kf3 {[%clk 0:01:22.4]}
37... Rxa2 {[%clk 0:00:33.7]} 38. Rb7+ {[%clk 0:01:17.4]} 38... Kf8 {[%clk
0:00:31.6]} 39. Rb6 {[%clk 0:01:16.3]} 39... Kg7 {[%clk 0:00:31.3]} 40. Rb7+
{[%clk 0:01:15.6]} 40... Kh6 {[%clk 0:00:31.5]} 41. Rb6 {[%clk 0:01:15.8]} 41...
f5 {[%clk 0:00:25.2]} 42. Rb5 {[%clk 0:01:15.9]} 42... Ra3 {[%clk 0:00:20.4]}
43. Kf4 {[%clk 0:01:15.5]} 43... Ra1 {[%clk 0:00:17.2]} 44. Kf3 {[%clk
0:01:13.2]} 44... Ra2 {[%clk 0:00:17.3]} 45. Kf4 {[%clk 0:01:13.2]} 45... Ra3
{[%clk 0:00:17.7]} 46. Rb8 {[%clk 0:01:08.6]} 46... a4 {[%clk 0:00:15.8]} 47.
bxa4 {[%clk 0:01:08.4]} 47... Rxa4+ {[%clk 0:00:16.7]} 48. Kf3 {[%clk
0:01:08.5]} 48... Ra6 {[%clk 0:00:15.9]} 49. Rb7 {[%clk 0:01:05.7]} 49... Re6
{[%clk 0:00:14.4]} 50. Ra7 {[%clk 0:01:02.9]} 50... Rb6 {[%clk 0:00:11.9]} 51.
Rc7 {[%clk 0:01:02.4]} 51... Rb4 {[%clk 0:00:12]} 52. Ra7 {[%clk 0:01:01.7]}
52... Rg4 {[%clk 0:00:12.3]} 53. Ra6 {[%clk 0:00:58.9]} 53... f4 {[%clk
0:00:12.1]} 54. gxf4 {[%clk 0:00:56]} 54... Rxh4 {[%clk 0:00:09.9]} 55. Kg3
{[%clk 0:00:54.9]} 55... Rg4+ {[%clk 0:00:09.9]} 56. Kf3 {[%clk 0:00:55.2]}
56... Rg1 {[%clk 0:00:08.1]} 57. Kf2 {[%clk 0:00:39.3]} 57... Rg4 {[%clk
0:00:08.3]} 58. Kf3 {[%clk 0:00:38.9]} 58... Kg7 {[%clk 0:00:08.7]} 59. Rb6
{[%clk 0:00:34]} 59... Kf7 {[%clk 0:00:06.2]} 60. Ra6 {[%clk 0:00:33.3]} 60...
Rg1 {[%clk 0:00:06.4]} 61. Kf2 {[%clk 0:00:32.7]} 61... Rb1 {[%clk 0:00:06.4]}
62. Kg3 {[%clk 0:00:32]} 62... Rb4 {[%clk 0:00:04.2]} 63. Rc6 {[%clk 0:00:18.6]}
63... Rd4 {[%clk 0:00:03.8]} 64. Ra6 {[%clk 0:00:18]} 64... Rc4 {[%clk
0:00:04.3]} 65. Rb6 {[%clk 0:00:17.8]} 65... Ra4 {[%clk 0:00:05]} 66. Rc6 {[%clk
0:00:17.9]} 66... Kg7 {[%clk 0:00:05.1]} 67. Rb6 {[%clk 0:00:17.8]} 67... Ra3+
{[%clk 0:00:04.5]} 68. Kh4 {[%clk 0:00:16.7]} 68... Rf3 {[%clk 0:00:04.7]} 69.
Rb4 {[%clk 0:00:16.2]} 69... Kf6 {[%clk 0:00:05.1]} 70. Ra4 {[%clk 0:00:15.9]}
70... Kf5 {[%clk 0:00:05.5]} 71. Rb4 {[%clk 0:00:15.7]} 71... Rxf4+ {[%clk
0:00:05.6]} 72. Rxf4+ {[%clk 0:00:15.3]} 72... Kxf4 {[%clk 0:00:06.5]} 73. Kh3
{[%clk 0:00:14.5]} 73... g5 {[%clk 0:00:07.4]} 0-1

[Event "Early-Titled-Tuesday-Blitz-April-16-2024"]
[Site "Chess.com"]
[Date "2024.04.16"]
[Round "10"]
[White "zverr1"]
[Black "VD_coach"]
[Result "0-1"]
[WhiteElo "2507"]
[BlackElo "2634"]
[TimeControl "180+1"]
[EndTime "10:00:54 PDT"]
[Termination "VD_coach won by checkmate"]

1. e4 {[%clk 0:03:00.9]} 1... c5 {[%clk 0:02:59.8]} 2. Nf3 {[%clk 0:03:00.7]}
2... d6 {[%clk 0:02:51.1]} 3. Nc3 {[%clk 0:03:00.1]} 3... Nf6 {[%clk 0:02:50.8]}
4. e5 {[%clk 0:03:00.3]} 4... dxe5 {[%clk 0:02:50.7]} 5. Nxe5 {[%clk 0:03:01.2]}
5... e6 {[%clk 0:02:48]} 6. Bb5+ {[%clk 0:02:59.3]} 6... Nbd7 {[%clk 0:02:47.6]}
7. d4 {[%clk 0:02:57.9]} 7... a6 {[%clk 0:02:45.3]} 8. Bxd7+ {[%clk 0:02:56.8]}
8... Nxd7 {[%clk 0:02:44.9]} 9. Qf3 {[%clk 0:02:51.4]} 9... Qf6 {[%clk
0:02:33.3]} 10. Qxf6 {[%clk 0:02:44.4]} 10... gxf6 {[%clk 0:02:32.2]} 11. Nxd7
{[%clk 0:02:43.8]} 11... Bxd7 {[%clk 0:02:32.2]} 12. Ne4 {[%clk 0:02:27.7]}
12... Be7 {[%clk 0:02:22.8]} 13. Nxc5 {[%clk 0:02:24.3]} 13... Bc6 {[%clk
0:02:21.3]} 14. f3 {[%clk 0:02:20.7]} 14... Rg8 {[%clk 0:02:20]} 15. Kf2 {[%clk
0:02:18]} 15... O-O-O {[%clk 0:02:09.3]} 16. Nb3 {[%clk 0:02:09.2]} 16... e5
{[%clk 0:01:53.8]} 17. Be3 {[%clk 0:01:53.6]} 17... e4 {[%clk 0:01:15.3]} 18. f4
{[%clk 0:01:47.8]} 18... f5 {[%clk 0:01:13.9]} 19. c4 {[%clk 0:01:43.2]} 19...
b5 {[%clk 0:01:13.5]} 20. d5 {[%clk 0:01:19.4]} 20... Bb7 {[%clk 0:01:00.5]} 21.
Nd4 {[%clk 0:01:12.2]} 21... bxc4 {[%clk 0:00:51.3]} 22. Nxf5 {[%clk 0:01:11.7]}
22... Bf6 {[%clk 0:00:51.1]} 23. d6 {[%clk 0:00:56.8]} 23... Kd7 {[%clk
0:00:39.5]} 24. Bb6 {[%clk 0:00:35.8]} 24... Rc8 {[%clk 0:00:29.3]} 25. Bc7
{[%clk 0:00:34]} 25... e3+ {[%clk 0:00:20]} 26. Nxe3 {[%clk 0:00:33.5]} 26...
Bd4 {[%clk 0:00:20.3]} 27. Rhg1 {[%clk 0:00:30.6]} 27... Rce8 {[%clk 0:00:18.2]}
28. Rae1 {[%clk 0:00:28.9]} 28... Re4 {[%clk 0:00:17]} 29. Re2 {[%clk
0:00:25.2]} 29... Rge8 {[%clk 0:00:16.9]} 30. Rge1 {[%clk 0:00:25.5]} 30... h5
{[%clk 0:00:14.5]} 31. g3 {[%clk 0:00:24.6]} 31... Bc6 {[%clk 0:00:14.7]} 32. h3
{[%clk 0:00:16.1]} 32... c3 {[%clk 0:00:14.8]} 33. bxc3 {[%clk 0:00:13.4]} 33...
Bxc3 {[%clk 0:00:15.7]} 34. Rd1 {[%clk 0:00:13.8]} 34... Bd4 {[%clk 0:00:15.9]}
35. Rxd4 {[%clk 0:00:06.3]} 35... Rxd4 {[%clk 0:00:16.8]} 36. Rc2 {[%clk
0:00:03.8]} 36... Rde4 {[%clk 0:00:15.7]} 37. Nf5 {[%clk 0:00:03.9]} 37... Bb5
{[%clk 0:00:14.7]} 38. Ne7 {[%clk 0:00:02.6]} 38... R4xe7 {[%clk 0:00:12.2]} 39.
dxe7 {[%clk 0:00:02.5]} 39... Rc8 {[%clk 0:00:13.1]} 40. Rd2+ {[%clk 0:00:01.2]}
40... Kxc7 {[%clk 0:00:12]} 41. Rc2+ {[%clk 0:00:01.8]} 41... Kb7 {[%clk
0:00:11.5]} 42. Rxc8 {[%clk 0:00:02.5]} 42... Kxc8 {[%clk 0:00:12.2]} 43. g4
{[%clk 0:00:03]} 43... Kd7 {[%clk 0:00:12]} 44. gxh5 {[%clk 0:00:03.1]} 44...
Kxe7 {[%clk 0:00:12.6]} 45. Ke3 {[%clk 0:00:02.9]} 45... Kf8 {[%clk 0:00:12.5]}
46. Ke4 {[%clk 0:00:03.2]} 46... Kg7 {[%clk 0:00:13.1]} 47. Kf5 {[%clk
0:00:04.1]} 47... Bc4 {[%clk 0:00:12.6]} 48. a3 {[%clk 0:00:03.4]} 48... Kh6
{[%clk 0:00:12.9]} 49. Kg4 {[%clk 0:00:02.1]} 49... Be2+ {[%clk 0:00:12.7]} 50.
Kf5 {[%clk 0:00:01.7]} 50... Kxh5 {[%clk 0:00:13]} 51. Kf6 {[%clk 0:00:01.7]}
51... Bc4 {[%clk 0:00:13.6]} 52. Ke5 {[%clk 0:00:02.3]} 52... Kh4 {[%clk
0:00:13.5]} 53. Kd4 {[%clk 0:00:03.1]} 53... Be6 {[%clk 0:00:13.2]} 54. Ke5
{[%clk 0:00:03.3]} 54... Kxh3 {[%clk 0:00:12.8]} 55. f5 {[%clk 0:00:04.1]} 55...
Bb3 {[%clk 0:00:12.4]} 56. Kf4 {[%clk 0:00:04.8]} 56... Kh4 {[%clk 0:00:12.5]}
57. Ke5 {[%clk 0:00:03.8]} 57... Kg5 {[%clk 0:00:12.7]} 58. f6 {[%clk
0:00:04.3]} 58... Be6 {[%clk 0:00:12.2]} 59. a4 {[%clk 0:00:04]} 59... a5 {[%clk
0:00:12.5]} 60. Kd4 {[%clk 0:00:04.3]} 60... Kxf6 {[%clk 0:00:13.4]} 61. Kc5
{[%clk 0:00:04.9]} 61... Bd7 {[%clk 0:00:13.7]} 62. Kb6 {[%clk 0:00:05.5]} 62...
Ke5 {[%clk 0:00:13.9]} 63. Kxa5 {[%clk 0:00:06.4]} 63... Bxa4 {[%clk 0:00:13.7]}
64. Kxa4 {[%clk 0:00:06.6]} 64... Ke4 {[%clk 0:00:12.8]} 65. Kb3 {[%clk
0:00:07.5]} 65... Ke3 {[%clk 0:00:12.8]} 66. Kc2 {[%clk 0:00:07]} 66... Ke2
{[%clk 0:00:12]} 67. Kc3 {[%clk 0:00:07.4]} 67... f5 {[%clk 0:00:12]} 68. Kd4
{[%clk 0:00:08.2]} 68... f4 {[%clk 0:00:12.3]} 69. Ke4 {[%clk 0:00:09.1]} 69...
f3 {[%clk 0:00:12.9]} 70. Kf4 {[%clk 0:00:10]} 70... f2 {[%clk 0:00:13.4]} 71.
Kg3 {[%clk 0:00:10.9]} 71... f1=Q {[%clk 0:00:14.2]} 72. Kh2 {[%clk 0:00:11.4]}
72... Qf7 {[%clk 0:00:13.9]} 73. Kg2 {[%clk 0:00:11.5]} 73... Qg7+ {[%clk
0:00:13.7]} 74. Kh2 {[%clk 0:00:12.3]} 74... Kf3 {[%clk 0:00:14]} 75. Kh1 {[%clk
0:00:13.2]} 75... Qg2# {[%clk 0:00:14.1]} 0-1

[Event "Early-Titled-Tuesday-Blitz-April-16-2024"]
[Site "Chess.com"]
[Date "2024.04.16"]
[Round "10"]
[White "stratacticos"]
[Black "Kostukov_Alex"]
[Result "0-1"]
[WhiteElo "1894"]
[BlackElo "2275"]
[TimeControl "180+1"]
[EndTime "10:01:09 PDT"]
[Termination "Kostukov_Alex won on time"]

1. b4 {[%clk 0:02:59.8]} 1... Nf6 {[%clk 0:02:59.2]} 2. Bb2 {[%clk 0:02:57.5]}
2... g6 {[%clk 0:02:55.7]} 3. c4 {[%clk 0:02:55.6]} 3... Bg7 {[%clk 0:02:55.3]}
4. d3 {[%clk 0:02:54.3]} 4... O-O {[%clk 0:02:55.3]} 5. Nf3 {[%clk 0:02:53.8]}
5... d5 {[%clk 0:02:52.3]} 6. cxd5 {[%clk 0:02:53.4]} 6... Qxd5 {[%clk
0:02:53.2]} 7. Nc3 {[%clk 0:02:51.2]} 7... Qd7 {[%clk 0:02:52]} 8. Rb1 {[%clk
0:02:42.4]} 8... b6 {[%clk 0:02:51.7]} 9. g3 {[%clk 0:02:41.2]} 9... Bb7 {[%clk
0:02:51.6]} 10. Bg2 {[%clk 0:02:41.7]} 10... Nc6 {[%clk 0:02:47.8]} 11. a3
{[%clk 0:02:40.5]} 11... Nd4 {[%clk 0:02:33.4]} 12. Ne5 {[%clk 0:02:34.4]} 12...
Qc8 {[%clk 0:02:30]} 13. O-O {[%clk 0:02:25.7]} 13... Bxg2 {[%clk 0:02:28]} 14.
Kxg2 {[%clk 0:02:25.3]} 14... c5 {[%clk 0:02:16.3]} 15. bxc5 {[%clk 0:02:09.4]}
15... Qxc5 {[%clk 0:02:17.2]} 16. Nf3 {[%clk 0:02:03.9]} 16... Nxf3 {[%clk
0:02:03.3]} 17. exf3 {[%clk 0:02:03.1]} 17... Qc6 {[%clk 0:02:00.3]} 18. Ne4
{[%clk 0:02:02]} 18... Nxe4 {[%clk 0:01:51.1]} 19. dxe4 {[%clk 0:01:59.5]} 19...
Rad8 {[%clk 0:01:45.4]} 20. Qc1 {[%clk 0:01:58.8]} 20... Qb7 {[%clk 0:01:37.5]}
21. Bxg7 {[%clk 0:01:57.2]} 21... Kxg7 {[%clk 0:01:38.4]} 22. Qc3+ {[%clk
0:01:56.1]} 22... Kg8 {[%clk 0:01:37.7]} 23. Rfc1 {[%clk 0:01:50.8]} 23... Rd7
{[%clk 0:01:37.3]} 24. h4 {[%clk 0:01:46]} 24... h5 {[%clk 0:01:36.2]} 25. Rb5
{[%clk 0:01:40.7]} 25... Rfd8 {[%clk 0:01:26.3]} 26. Rg5 {[%clk 0:01:36.2]}
26... Qa6 {[%clk 0:01:12.6]} 27. Qb3 {[%clk 0:01:31.7]} 27... Kg7 {[%clk
0:01:07.6]} 28. Qc3+ {[%clk 0:01:30.2]} 28... f6 {[%clk 0:01:06.8]} 29. Re1
{[%clk 0:01:14.2]} 29... Rd3 {[%clk 0:01:03.8]} 30. Qb2 {[%clk 0:01:02.9]} 30...
Qxa3 {[%clk 0:00:54]} 31. Qxa3 {[%clk 0:01:02.2]} 31... Rxa3 {[%clk 0:00:50.4]}
32. Rb5 {[%clk 0:01:02]} 32... Rdd3 {[%clk 0:00:39.3]} 33. f4 {[%clk 0:01:01.5]}
33... Ra2 {[%clk 0:00:35.9]} 34. Rd5 {[%clk 0:00:59.9]} 34... Rb3 {[%clk
0:00:31.5]} 35. e5 {[%clk 0:00:54.2]} 35... f5 {[%clk 0:00:25.4]} 36. Rd7 {[%clk
0:00:42.3]} 36... Kf7 {[%clk 0:00:23.9]} 37. e6+ {[%clk 0:00:42.2]} 37... Kf6
{[%clk 0:00:21.8]} 38. Rd8 {[%clk 0:00:41.5]} 38... Rbb2 {[%clk 0:00:17.6]} 39.
Rf8+ {[%clk 0:00:40.1]} 39... Kg7 {[%clk 0:00:17.9]} 40. Rf7+ {[%clk 0:00:39.9]}
40... Kg8 {[%clk 0:00:16.1]} 41. Rf1 {[%clk 0:00:39.8]} 41... Re2 {[%clk
0:00:14.1]} 42. Rxe7 {[%clk 0:00:39.6]} 42... b5 {[%clk 0:00:14]} 43. Kf3 {[%clk
0:00:34.5]} 43... b4 {[%clk 0:00:12.8]} 44. Rxa7 {[%clk 0:00:33.9]} 44... b3
{[%clk 0:00:06.9]} 45. Rxa2 {[%clk 0:00:28]} 45... Rxa2 {[%clk 0:00:07.8]} 46.
Rb1 {[%clk 0:00:27.4]} 46... b2 {[%clk 0:00:06.3]} 47. Ke3 {[%clk 0:00:27]}
47... Kf8 {[%clk 0:00:06.4]} 48. Kd4 {[%clk 0:00:27.3]} 48... Ke7 {[%clk
0:00:06.9]} 49. Ke5 {[%clk 0:00:27.8]} 49... Ra5+ {[%clk 0:00:06.4]} 50. Kd4
{[%clk 0:00:27.7]} 50... Rb5 {[%clk 0:00:07.1]} 51. Kc3 {[%clk 0:00:23.4]} 51...
Kxe6 {[%clk 0:00:07.1]} 52. Rxb2 {[%clk 0:00:23.4]} 52... Rxb2 {[%clk
0:00:06.9]} 53. Kxb2 {[%clk 0:00:23.4]} 53... Kd5 {[%clk 0:00:07.8]} 54. Kc2
{[%clk 0:00:23.2]} 54... Ke4 {[%clk 0:00:08.7]} 55. Kd2 {[%clk 0:00:23.3]} 55...
Kf3 {[%clk 0:00:07.2]} 56. Ke1 {[%clk 0:00:23.3]} 56... Kg2 {[%clk 0:00:06.8]}
57. Ke2 {[%clk 0:00:23.2]} 57... Kg1 {[%clk 0:00:07]} 58. Kf3 {[%clk 0:00:23]}
58... Kf1 {[%clk 0:00:07.2]} 59. Ke3 {[%clk 0:00:20.2]} 59... Ke1 {[%clk
0:00:07.1]} 60. f3 {[%clk 0:00:18.4]} 60... Kf1 {[%clk 0:00:07.1]} 61. g4 {[%clk
0:00:18]} 61... fxg4 {[%clk 0:00:06.8]} 62. fxg4 {[%clk 0:00:18.1]} 62... hxg4
{[%clk 0:00:06.4]} 63. h5 {[%clk 0:00:16.1]} 63... gxh5 {[%clk 0:00:03.4]} 64.
f5 {[%clk 0:00:15.8]} 64... g3 {[%clk 0:00:02.2]} 65. f6 {[%clk 0:00:15.2]}
65... g2 {[%clk 0:00:03.1]} 66. f7 {[%clk 0:00:15.1]} 66... g1=Q+ {[%clk
0:00:04]} 67. Ke4 {[%clk 0:00:13.4]} 67... Qf2 {[%clk 0:00:04.9]} 0-1

[Event "Early-Titled-Tuesday-Blitz-April-16-2024"]
[Site "Chess.com"]
[Date "2024.04.16"]
[Round "10"]
[White "Brahianzevich"]
[Black "IshviAggarwal"]
[Result "1-0"]
[WhiteElo "2502"]
[BlackElo "2136"]
[TimeControl "180+1"]
[EndTime "10:01:09 PDT"]
[Termination "Brahianzevich won by resignation"]

1. e4 {[%clk 0:02:56.9]} 1... e5 {[%clk 0:02:57.2]} 2. Nf3 {[%clk 0:02:57.1]}
2... Nc6 {[%clk 0:02:57.7]} 3. Bb5 {[%clk 0:02:57.7]} 3... a6 {[%clk 0:02:57.6]}
4. Ba4 {[%clk 0:02:58]} 4... Nf6 {[%clk 0:02:58.2]} 5. O-O {[%clk 0:02:57.8]}
5... b5 {[%clk 0:02:58.8]} 6. Bb3 {[%clk 0:02:57.6]} 6... Bc5 {[%clk 0:02:59.7]}
7. c3 {[%clk 0:02:57.2]} 7... d6 {[%clk 0:03:00.4]} 8. d4 {[%clk 0:02:56.1]}
8... Bb6 {[%clk 0:03:00.9]} 9. Be3 {[%clk 0:02:54.4]} 9... O-O {[%clk
0:02:59.1]} 10. Nbd2 {[%clk 0:02:39.4]} 10... Re8 {[%clk 0:02:50]} 11. dxe5
{[%clk 0:02:26.2]} 11... dxe5 {[%clk 0:02:47.6]} 12. Bxb6 {[%clk 0:02:18.2]}
12... cxb6 {[%clk 0:02:48.5]} 13. Qe2 {[%clk 0:02:18.7]} 13... Bg4 {[%clk
0:02:40.9]} 14. Rfd1 {[%clk 0:02:13.6]} 14... Qc7 {[%clk 0:02:39.5]} 15. h3
{[%clk 0:02:12.6]} 15... Bh5 {[%clk 0:02:39.4]} 16. Nf1 {[%clk 0:02:13.3]} 16...
Rad8 {[%clk 0:02:26.8]} 17. Ng3 {[%clk 0:02:12.8]} 17... Bg6 {[%clk 0:02:26.9]}
18. a4 {[%clk 0:02:08.7]} 18... bxa4 {[%clk 0:02:25.6]} 19. Bxa4 {[%clk
0:02:07]} 19... b5 {[%clk 0:02:24.7]} 20. Bc2 {[%clk 0:02:00.3]} 20... Qb6
{[%clk 0:02:17.5]} 21. Nh4 {[%clk 0:01:50.8]} 21... Na5 {[%clk 0:02:03.4]} 22.
Nhf5 {[%clk 0:01:42.5]} 22... Nc4 {[%clk 0:01:44.8]} 23. b3 {[%clk 0:01:32.9]}
23... Nd6 {[%clk 0:01:42.2]} 24. Nxd6 {[%clk 0:01:21.6]} 24... Rxd6 {[%clk
0:01:40.9]} 25. Rxd6 {[%clk 0:01:21.1]} 25... Qxd6 {[%clk 0:01:41.8]} 26. Rd1
{[%clk 0:01:20.4]} 26... Qc6 {[%clk 0:01:39]} 27. Qe3 {[%clk 0:01:13.2]} 27...
h6 {[%clk 0:01:28.3]} 28. f3 {[%clk 0:01:11.6]} 28... Rc8 {[%clk 0:01:27.8]} 29.
Ne2 {[%clk 0:01:11.1]} 29... Nd7 {[%clk 0:01:25.4]} 30. Rd5 {[%clk 0:01:01.5]}
30... f6 {[%clk 0:01:21.6]} 31. Qd3 {[%clk 0:00:58.6]} 31... Nc5 {[%clk
0:01:10.8]} 32. Rd8+ {[%clk 0:00:45.8]} 32... Kh7 {[%clk 0:01:10.5]} 33. Qd6
{[%clk 0:00:38.8]} 33... Qxd6 {[%clk 0:01:10.1]} 34. Rxd6 {[%clk 0:00:39.4]}
34... a5 {[%clk 0:01:05.9]} 35. Rb6 {[%clk 0:00:34.9]} 35... Be8 {[%clk
0:01:00.7]} 36. Kf2 {[%clk 0:00:33.7]} 36... a4 {[%clk 0:00:50.4]} 37. b4 {[%clk
0:00:32.8]} 37... Nb3 {[%clk 0:00:39.2]} 38. Ke3 {[%clk 0:00:32.5]} 38... Ra8
{[%clk 0:00:26.5]} 39. g4 {[%clk 0:00:19.7]} 39... h5 {[%clk 0:00:24.2]} 40. Ng3
{[%clk 0:00:14.1]} 40... hxg4 {[%clk 0:00:21.4]} 41. hxg4 {[%clk 0:00:15]} 41...
Nc1 {[%clk 0:00:20.6]} 42. Kd2 {[%clk 0:00:14.9]} 42... a3 {[%clk 0:00:17.6]}
43. Bb1 {[%clk 0:00:11.3]} 43... a2 {[%clk 0:00:17.4]} 44. Bxa2 {[%clk
0:00:11.5]} 44... Nxa2 {[%clk 0:00:18.1]} 45. Nf5 {[%clk 0:00:10.8]} 45... Bd7
{[%clk 0:00:15.7]} 46. Ne3 {[%clk 0:00:07.7]} 46... Be6 {[%clk 0:00:15.8]} 47.
Rxe6 {[%clk 0:00:07.6]} 47... Rd8+ {[%clk 0:00:13.3]} 48. Kc2 {[%clk 0:00:08]}
48... Ra8 {[%clk 0:00:09.6]} 49. Re7 {[%clk 0:00:08.4]} 49... Ra3 {[%clk
0:00:10]} 50. Nf5 {[%clk 0:00:07.7]} 50... Rxc3+ {[%clk 0:00:10.5]} 51. Kb2
{[%clk 0:00:08.1]} 51... Rxf3 {[%clk 0:00:10.3]} 52. Kxa2 {[%clk 0:00:08.3]}
52... Rf4 {[%clk 0:00:07.6]} 53. Rxg7+ {[%clk 0:00:08.8]} 53... Kh8 {[%clk
0:00:08.2]} 54. Rg6 {[%clk 0:00:08.8]} 54... Rxe4 {[%clk 0:00:07.7]} 55. Rxf6
{[%clk 0:00:08]} 55... Rxg4 {[%clk 0:00:05.8]} 56. Kb3 {[%clk 0:00:07.6]} 56...
Kh7 {[%clk 0:00:02.9]} 57. Rh6+ {[%clk 0:00:06.9]} 57... Kg8 {[%clk 0:00:02.7]}
58. Re6 {[%clk 0:00:07.2]} 58... Kf7 {[%clk 0:00:01.9]} 59. Rxe5 {[%clk
0:00:06.5]} 59... Kf6 {[%clk 0:00:01.6]} 60. Rxb5 {[%clk 0:00:06.5]} 60... Rg3+
{[%clk 0:00:02.2]} 61. Ka4 {[%clk 0:00:06.4]} 61... Rg1 {[%clk 0:00:02.2]} 62.
Nd4 {[%clk 0:00:06.4]} 62... Ra1+ {[%clk 0:00:02.4]} 63. Kb3 {[%clk 0:00:07.1]}
63... Rb1+ {[%clk 0:00:02.8]} 64. Kc3 {[%clk 0:00:07.5]} 64... Rc1+ {[%clk
0:00:03.2]} 65. Nc2 {[%clk 0:00:08]} 65... Ke7 {[%clk 0:00:03]} 66. Rd5 {[%clk
0:00:08.2]} 66... Ke6 {[%clk 0:00:03]} 67. Rd2 {[%clk 0:00:08]} 67... Ke7 {[%clk
0:00:03.6]} 68. Kb2 {[%clk 0:00:08.1]} 68... Rf1 {[%clk 0:00:03.1]} 1-0